bitfinex/quotes_ETHUSD_20250505
["timestamp","ask_amount","ask_price","bid_price","bid_amount"]
[1746455559101,11.06231608,1808.0,1807.7,6.14]
[1746455559403,5.53150302,1807.9,1807.7,6.14]
[1746455559556,11.06239432,1808.0,1807.7,6.14]
[1746455559750,5.53112807,1808.0,1807.7,7.38510593]
[1746455559992,5.5308769,1808.1,1807.7,12.91695586]
[1746455560187,5.5308769,1808.1,1807.8,6.14]
[1746455560394,5.5308769,1808.1,1807.9,0.7521]
[1746455560599,6.09863812,1808.2,1807.9,0.7521]
[1746455560806,5.52991781,1808.4,1808.0,27.71537959]
[1746455561104,5.53036168,1808.2,1808.1,3.52363796]
[1746455561256,5.53024243,1808.3,1808.1,19.74363796]
[1746455561458,5.52990337,1808.4,1808.1,19.74363796]
[1746455561866,5.52974041,1808.5,1808.1,19.74363796]
[1746455562067,5.05443947,1808.2,1808.1,16.22]
[1746455562275,5.60443947,1808.2,1808.1,16.22]
[1746455562572,6.17253947,1808.2,1808.1,16.22]
[1746455563099,6.09937938,1807.9,1807.8,6.14]
[1746455563610,5.53127938,1807.9,1807.8,6.14]
[1746455569108,7.18751793,1807.9,1807.8,6.14]
[1746455569410,7.18751793,1807.9,1807.7,6.14]
[1746455569411,6.08158535,1807.8,1807.7,6.14]
[1746455569557,6.08158535,1807.8,1807.5,6.14]
[1746455569558,6.08219738,1807.6,1807.5,6.14]
[1746455569762,6.65029738,1807.6,1807.5,6.14]
[1746455570018,6.08219738,1807.6,1807.5,6.14]
[1746455570499,5.53219738,1807.6,1807.5,6.83452]
[1746455570697,5.53175522,1807.8,1807.5,6.83452]
[1746455570907,5.53154378,1807.9,1807.6,6.9729]
[1746455571100,11.06306814,1807.9,1807.6,6.9729]
[1746455571397,5.53152436,1807.9,1807.7,0.69729]
[1746455571601,11.06307979,1807.9,1807.7,0.69729]
[1746455571896,5.53158535,1807.8,1807.7,0.69729]
[1746455572277,5.53152436,1807.9,1807.7,0.69729]
[1746455572479,5.53158535,1807.8,1807.7,0.69729]
[1746455574671,5.53152436,1807.9,1807.7,0.69729]
[1746455574882,5.53158535,1807.8,1807.7,0.69729]
[1746455575382,6.09785005,1808.4,1807.8,6.9653]
[1746455575696,5.53084522,1808.1,1807.9,21.073]
[1746455575901,5.5305922,1808.2,1808.0,16.22]
[1746455576406,5.53066755,1808.1,1808.0,16.22]
[1746455577709,6.09876755,1808.1,1808.0,16.22]
[1746455577882,5.53097345,1808.0,1807.9,6.14]
[1746455578282,7.29894755,1808.0,1807.9,6.14]
[1746455578591,7.86704755,1808.0,1807.9,6.14]
[1746455579311,6.09968535,1807.8,1807.7,6.14]
[1746455580577,5.53158535,1807.8,1807.7,6.14]
[1746455582793,6.09881644,1808.1,1807.7,6.14]
[1746455582987,5.53158535,1807.8,1807.7,6.14]
[1746455584571,5.53141137,1807.9,1807.8,0.8268]
[1746455584731,5.53078907,1808.1,1807.8,6.79130073]
[1746455584907,5.53078907,1808.1,1807.9,6.14]
[1746455585384,5.53097345,1808.0,1807.9,6.14]
[1746455586512,5.53078907,1808.1,1807.9,6.9358]
[1746455586823,5.53097345,1808.0,1807.9,6.9358]
[1746455587313,5.53097345,1808.0,1807.9,6.14]
[1746455587979,6.08097345,1808.0,1807.9,6.14]
[1746455589822,6.08189135,1807.7,1807.6,6.14]
[1746455590122,6.08189135,1807.7,1807.4,3.71539814]
[1746455590123,5.53250345,1807.5,1807.4,3.71539814]
[1746455590329,6.10060345,1807.5,1807.4,3.71539814]
[1746455590684,5.53250345,1807.5,1807.4,3.71539814]
[1746455592841,5.53219738,1807.6,1807.4,10.30670795]
[1746455593023,5.53209454,1807.7,1807.4,10.30670795]
[1746455593196,11.06428919,1807.7,1807.4,15.15470795]
[1746455593393,5.53246225,1807.6,1807.4,15.15470795]
[1746455593614,5.53244357,1807.6,1807.4,11.43930981]
[1746455593897,5.53250345,1807.5,1807.4,11.43930981]
[1746455594098,5.53244357,1807.6,1807.4,11.43930981]
[1746455594729,5.53200265,1807.7,1807.5,6.14]
[1746455595256,5.53219738,1807.6,1807.5,6.14]
[1746455597958,6.08219738,1807.6,1807.5,6.14]
[1746455598261,7.24361738,1807.6,1807.5,6.14]
[1746455600461,6.08219738,1807.6,1807.5,6.14]
[1746455600764,6.65029738,1807.6,1807.5,6.14]
[1746455604777,6.08219738,1807.6,1807.5,6.14]
[1746455605471,5.53219738,1807.6,1807.5,6.14]
[1746455606266,5.53280956,1807.4,1807.3,6.14]
[1746455606473,5.53263969,1807.5,1807.4,0.7535]
[1746455606637,5.53220742,1807.6,1807.4,0.7535]
[1746455606966,5.53210721,1807.7,1807.4,0.7535]
[1746455607272,5.53221011,1807.6,1807.4,0.7535]
[1746455607768,5.53210721,1807.7,1807.4,0.7535]
[1746455608182,5.53229393,1807.6,1807.4,0.7535]
[1746455608676,5.53229393,1807.6,1807.4,2.25805007]
[1746455609273,5.53198063,1807.7,1807.4,2.25805007]
[1746455609483,5.53198063,1807.7,1807.4,2.31337118]
[1746455609761,5.53198063,1807.7,1807.4,7.84616544]
[1746455609965,6.09910317,1808.0,1807.6,0.7603]
[1746455609966,5.53139054,1807.9,1807.6,0.7603]
[1746455610142,5.53110824,1808.0,1807.6,0.7603]
[1746455610143,5.53110824,1808.0,1807.7,12.10450073]
[1746455610352,5.53142339,1807.9,1807.7,19.25251225]
[1746455610832,11.06296933,1807.9,1807.7,19.25251225]
[1746455611191,5.53158535,1807.8,1807.7,10.988]
[1746455612333,6.09968535,1807.8,1807.7,6.14]
[1746455613033,5.53158535,1807.8,1807.7,6.14]
[1746455614331,5.53158535,1807.8,1807.7,6.89]
[1746455616058,5.53158535,1807.8,1807.7,6.14]
[1746455619488,6.08189135,1807.7,1807.6,6.14]
[1746455619654,6.08189135,1807.7,1807.4,8.56339814]
[1746455619655,6.08250345,1807.5,1807.4,9.85539814]
[1746455619859,6.65060345,1807.5,1807.4,3.71539814]
[1746455620061,7.8688971,1807.5,1807.4,3.71539814]
[1746455621676,6.08311569,1807.3,1807.2,9.85539814]
[1746455622491,5.53311569,1807.3,1807.2,9.85539814]
[1746455624488,6.65121569,1807.3,1807.2,9.85539814]
[1746455624714,7.86963136,1807.3,1807.2,3.71539814]
[1746455624867,10.86963136,1807.3,1807.2,3.71539814]
[1746455626215,6.65244058,1806.9,1806.8,3.71539814]
[1746455626361,7.87110128,1806.9,1806.8,3.71539814]
[1746455630411,7.87110128,1806.9,1806.6,6.14]
[1746455630412,6.08495322,1806.7,1806.6,6.14]
[1746455630591,5.53495322,1806.7,1806.6,6.14]
[1746455634279,5.5352596,1806.6,1806.5,6.14]
[1746455635413,5.5352596,1806.6,1806.5,6.914]
[1746455635626,5.5352596,1806.6,1806.5,7.6054]
[1746455636629,5.53480063,1806.8,1806.5,7.6054]
[1746455636914,5.53434058,1806.9,1806.8,0.7922]
[1746455637088,5.53434058,1806.9,1806.5,12.78049489]
[1746455637089,5.53485002,1806.8,1806.6,0.7922]
[1746455637417,5.53495322,1806.7,1806.6,0.7922]
[1746455639116,5.53484986,1806.8,1806.6,0.7922]
[1746455639308,5.53450728,1806.9,1806.6,2.63608975]
[1746455639619,5.53478402,1806.8,1806.6,2.63608975]
[1746455640614,5.53450728,1806.9,1806.6,2.69143938]
[1746455640823,5.53450728,1806.9,1806.6,2.63608975]
[1746455641505,5.53384858,1807.1,1806.7,12.1082975]
[1746455641708,5.53354931,1807.2,1806.9,6.7369975]
[1746455641904,5.53354931,1807.2,1807.0,6.14]
[1746455642110,5.53328141,1807.3,1807.0,6.14]
[1746455642321,5.53328141,1807.3,1807.1,0.7854]
[1746455642500,5.53263678,1807.5,1807.1,12.97977253]
[1746455642704,5.53263678,1807.5,1807.2,6.14]
[1746455643736,5.53293451,1807.4,1807.2,6.14]
[1746455643885,5.53311569,1807.3,1807.2,6.14]
[1746455644324,5.53262873,1807.5,1807.2,6.14]
[1746455644492,5.53262873,1807.5,1807.3,0.614]
[1746455644690,5.53262873,1807.5,1807.4,6.14]
[1746455645414,6.65072873,1807.5,1807.4,6.14]
[1746455646322,5.53372807,1807.1,1807.0,6.14]
[1746455646497,5.53464688,1806.8,1806.7,6.9236]
[1746455646697,5.53464688,1806.8,1806.7,6.14]
[1746455647422,11.06910528,1806.9,1806.7,6.14]
[1746455647615,5.53447374,1806.9,1806.7,6.14]
[1746455647819,5.53464688,1806.8,1806.7,6.14]
[1746455650494,5.53464688,1806.8,1806.7,6.9463]
[1746455650695,5.53464688,1806.8,1806.7,8.23775975]
[1746455651224,5.53464688,1806.8,1806.7,18.31775975]
[1746455651438,5.53464688,1806.8,1806.7,17.0263]
[1746455651635,5.53464688,1806.8,1806.7,16.22]
[1746455651846,5.53464688,1806.8,1806.7,6.14]
[1746455652903,5.5352596,1806.6,1806.5,6.14]
[1746455653107,5.53587245,1806.4,1806.3,6.14]
[1746455657253,5.53587245,1806.4,1806.3,6.9331]
[1746455657724,5.53568863,1806.5,1806.3,6.9331]
[1746455658129,5.53543795,1806.6,1806.3,6.9331]
[1746455658308,5.53563212,1806.5,1806.3,8.77688698]
[1746455659952,5.53587245,1806.4,1806.3,6.14]
[1746455662556,5.53617892,1806.3,1806.2,6.14]
[1746455666369,0.5681,1806.6,1806.2,6.9127]
[1746455666537,5.53459987,1806.9,1806.5,0.7727]
[1746455666867,5.53396905,1807.1,1806.8,0.7727]
[1746455667161,5.53403431,1807.0,1806.9,6.14]
[1746455667365,5.53396905,1807.1,1806.9,6.14]
[1746455667554,5.53357823,1807.2,1806.9,6.14]
[1746455667727,5.53332055,1807.3,1807.0,12.1082975]
[1746455667932,5.53306702,1807.4,1807.1,0.7774]
[1746455668153,5.53306702,1807.4,1807.2,16.22]
[1746455668345,5.53306702,1807.4,1807.3,6.14]
[1746455669240,5.5326343,1807.5,1807.3,6.14]
[1746455669548,5.53280956,1807.4,1807.3,6.14]
[1746455669948,5.5326343,1807.5,1807.3,6.14]
[1746455670342,5.53280956,1807.4,1807.3,6.14]
[1746455671383,6.69616395,1807.4,1807.3,6.14]
[1746455672280,5.53372807,1807.1,1807.0,6.14]
[1746455672679,6.10182807,1807.1,1807.0,6.14]
[1746455672842,5.53403431,1807.0,1806.9,3.71539814]
[1746455673271,6.69762055,1807.0,1806.9,3.71539814]
[1746455674341,5.53403431,1807.0,1806.9,3.71539814]
[1746455675171,5.53372807,1807.1,1806.9,6.14]
[1746455675377,0.5681,1808.2,1807.2,0.8084]
[1746455675540,5.53108049,1808.0,1807.8,5.9682975]
[1746455675967,5.53090503,1808.1,1807.8,5.9682975]
[1746455676159,5.53108377,1808.0,1807.8,5.9682975]
[1746455676371,5.53127938,1807.9,1807.7,3.86371191]
[1746455676681,5.53127938,1807.9,1807.7,3.8084]
[1746455677382,5.53158535,1807.8,1807.6,16.22]
[1746455677568,5.53189135,1807.7,1807.6,16.22]
[1746455677764,5.53172717,1807.8,1807.6,16.22]
[1746455677967,5.53115715,1808.0,1807.6,29.82668388]
[1746455678166,5.53138167,1807.9,1807.6,24.2945975]
[1746455678370,5.53115715,1808.0,1807.6,29.82675173]
[1746455678554,5.53128968,1807.9,1807.7,0.05531493]
[1746455678761,5.53119387,1808.0,1807.7,0.05531493]
[1746455678983,5.53119387,1808.0,1807.8,0.7536]
[1746455679185,5.53119387,1808.0,1807.6,16.9736]
[1746455679352,5.53189135,1807.7,1807.6,16.9736]
[1746455679547,5.53179034,1807.8,1807.6,16.9736]
[1746455679753,5.53189135,1807.7,1807.6,16.9736]
[1746455681291,5.53189135,1807.7,1807.6,6.8936]
[1746455681697,5.53189135,1807.7,1807.6,6.14]
[1746455681867,6.63825952,1807.7,1807.6,6.14]
[1746455683389,5.53250345,1807.5,1807.4,6.14]
[1746455683555,5.53311569,1807.3,1807.2,6.14]
[1746455684463,5.53342186,1807.2,1807.1,9.85539814]
[1746455684664,7.24507562,1807.2,1807.1,3.71539814]
[1746455684888,7.24507562,1807.2,1806.6,4.83001759]
[1746455684889,5.53464688,1806.8,1806.7,3.71539814]
[1746455687302,5.53464688,1806.8,1806.6,6.14]
[1746455687303,5.53495322,1806.7,1806.6,6.14]
[1746455688695,6.10305322,1806.7,1806.6,6.14]
[1746455690285,5.53587245,1806.4,1806.3,6.14]
[1746455693906,5.5357223,1806.5,1806.3,6.754]
[1746455694072,5.53587245,1806.4,1806.3,6.14]
[1746455702107,5.5357223,1806.5,1806.3,12.9077975]
[1746455702425,5.53541615,1806.6,1806.3,12.9077975]
[1746455702572,5.53513447,1806.7,1806.5,5.9682975]
[1746455702776,5.53513447,1806.7,1806.5,7.18466279]
[1746455703020,5.5352596,1806.6,1806.5,7.18466279]
[1746455703188,5.53513447,1806.7,1806.5,7.18466279]
[1746455703514,5.53513447,1806.7,1806.6,6.9444]
[1746455703515,5.53495322,1806.7,1806.6,6.9444]
[1746455704016,5.53495322,1806.7,1806.6,6.14]
[1746455705420,7.21002675,1806.7,1806.6,6.14]
[1746455706506,5.53495322,1806.7,1806.6,6.14]
[1746455711129,5.53556601,1806.5,1806.4,6.14]
[1746455712039,6.10366601,1806.5,1806.4,6.14]
[1746455714842,5.53556601,1806.5,1806.4,6.14]
[1746455716663,6.10366601,1806.5,1806.4,6.14]
[1746455716937,7.26757204,1806.5,1806.4,6.14]
[1746455717152,5.53679198,1806.1,1806.0,4.843]
[1746455717365,5.53709856,1806.0,1805.9,0.7839]
[1746455718652,5.53771181,1805.8,1805.7,6.7215975]
[1746455719647,5.53754208,1805.9,1805.7,6.7215975]
[1746455719951,5.53771181,1805.8,1805.7,6.7215975]
[1746455720130,5.53771181,1805.8,1805.7,0.7533]
[1746455720931,0.5681,1805.7,1805.3,3.71539814]
[1746455721159,15.62533623,1805.4,1805.3,3.04778753]
[1746455721369,9.65703873,1805.4,1805.3,3.04778753]
[1746455721661,11.1766173,1805.4,1805.3,3.04778753]
[1746455722050,8.1766173,1805.4,1805.3,3.04778753]
[1746455722826,8.59561589,1805.4,1805.3,3.04778753]
[1746455723149,5.53893873,1805.4,1805.3,3.04778753]
[1746455723376,5.53924555,1805.3,1805.2,3.04778753]
[1746455723884,5.5388395,1805.5,1805.3,0.8023]
[1746455724173,5.53833844,1805.6,1805.3,6.7705975]
[1746455724373,5.53863195,1805.5,1805.4,0.67705975]
[1746455725161,5.53863195,1805.5,1805.3,3.8023]
[1746455725671,5.53860993,1805.6,1805.3,3.8023]
[1746455725875,5.53712723,1806.0,1805.3,3.8023]
[1746455725876,5.53815036,1805.7,1805.3,15.30971953]
[1746455726072,5.53815036,1805.7,1805.4,21.065]
[1746455726568,5.53815036,1805.7,1805.5,16.22]
[1746455726777,5.53789897,1805.8,1805.6,17.0021]
[1746455727774,5.53753557,1805.9,1805.6,17.0021]
[1746455727951,5.5379172,1805.8,1805.6,17.0021]
[1746455728158,5.53753557,1805.9,1805.6,17.0021]
[1746455728369,5.53775815,1805.8,1805.6,17.0021]
[1746455728565,5.53727184,1806.0,1805.7,5.9682975]
[1746455728864,5.53709856,1806.0,1805.9,0.7994]
[1746455729065,5.53740517,1805.9,1805.8,19.22]
[1746455729641,5.53740517,1805.9,1805.8,16.22]
[1746455730476,5.53709856,1806.0,1805.8,16.22]
[1746455730675,26.8529396,1806.8,1805.9,27.67426831]
[1746455730676,5.53661531,1806.2,1805.9,27.67426831]
[1746455730883,5.53661531,1806.2,1806.0,0.05536522]
[1746455731173,11.07276933,1806.3,1806.1,0.7597]
[1746455731382,5.53648543,1806.2,1806.1,0.7597]
[1746455731679,11.0728248,1806.3,1806.1,1.09742664]
[1746455731882,5.53648543,1806.2,1806.1,1.09742664]
[1746455732241,5.53644328,1806.3,1806.1,1.09742664]
[1746455733262,5.53575847,1806.5,1806.1,12.60241299]
[1746455733459,5.53589027,1806.4,1806.1,13.86826663]
[1746455733752,5.53575847,1806.5,1806.1,13.86826663]
[1746455733753,5.53570153,1806.5,1806.2,16.22]
[1746455733947,5.53570153,1806.5,1806.1,13.86812544]
[1746455733948,5.53587245,1806.4,1806.3,16.22]
[1746455734146,5.53587245,1806.4,1806.3,16.57023861]
[1746455735250,5.53587245,1806.4,1806.3,6.49023861]
[1746455735550,6.69983985,1806.4,1806.3,6.49023861]
[1746455735992,11.12796865,1806.4,1806.3,0.35023861]
[1746455736185,15.97296865,1806.4,1806.3,0.04600867]
[1746455736361,15.97296865,1806.4,1806.3,0.32420039]
[1746455736563,6.10489198,1806.1,1806.0,6.14]
[1746455736746,5.53801849,1805.7,1805.6,6.14]
[1746455737291,6.10611849,1805.7,1805.6,6.14]
[1746455737496,6.65611849,1805.7,1805.6,6.14]
[1746455737673,6.10734555,1805.3,1805.2,6.14]
[1746455738178,5.53924555,1805.3,1805.2,6.14]
[1746455739174,5.53910625,1805.4,1805.2,6.14]
[1746455739496,5.53910625,1805.4,1805.2,6.8965]
[1746455739797,5.5384708,1805.6,1805.3,12.1082975]
[1746455739981,5.53828513,1805.7,1805.4,16.22]
[1746455740186,0.6104892,1806.1,1805.5,0.88088139]
[1746455740369,5.53761282,1805.9,1805.6,6.14]
[1746455740574,5.53696782,1806.1,1805.8,3.0]
[1746455740784,5.53709856,1806.0,1805.9,17.0455]
[1746455741290,5.53709856,1806.0,1805.9,16.22]
[1746455741503,6.6445052,1806.0,1805.9,16.22]
[1746455741676,7.2126052,1806.0,1805.9,16.22]
[1746455742089,6.6445052,1806.0,1805.9,16.22]
[1746455742808,5.53801849,1805.7,1805.6,6.14]
[1746455743683,5.53801849,1805.7,1805.6,6.41917248]
[1746455744187,6.61708776,1805.7,1805.6,6.41917248]
[1746455744501,6.61708776,1805.7,1805.6,0.27917248]
[1746455747210,5.53801849,1805.7,1805.6,0.27917248]
[1746455748812,5.53780502,1805.8,1805.6,7.22387248]
[1746455748977,5.53801849,1805.7,1805.6,7.22387248]
[1746455749177,5.53780502,1805.8,1805.6,7.22387248]
[1746455749378,5.53758926,1805.9,1805.6,7.22387248]
[1746455749578,5.53722085,1806.0,1805.6,7.22387248]
[1746455749779,5.53752637,1805.9,1805.6,8.50010226]
[1746455750203,5.53752637,1805.9,1805.7,6.14]
[1746455750408,11.07464212,1806.0,1805.7,6.14]
[1746455750608,11.07464212,1806.0,1805.8,0.2808956]
[1746455750812,5.53740517,1805.9,1805.8,0.2808956]
[1746455752123,6.6448728,1805.9,1805.8,0.2808956]
[1746455754819,6.95566092,1805.9,1805.8,0.2808956]
[1746455755758,7.50566092,1805.9,1805.8,0.2808956]
[1746455755959,5.53832521,1805.6,1805.5,6.14]
[1746455756134,5.53832521,1805.6,1805.5,6.42076343]
[1746455756332,6.64597293,1805.6,1805.5,6.42076343]
[1746455756921,7.21407293,1805.6,1805.5,6.42076343]
[1746455758080,6.64597293,1805.6,1805.5,6.42076343]
[1746455758283,5.53815202,1805.7,1805.5,6.42076343]
[1746455758578,5.53788226,1805.8,1805.5,6.42076343]
[1746455758579,5.53789171,1805.8,1805.6,6.14]
[1746455758780,5.53758822,1805.9,1805.6,6.14]
[1746455758974,5.5379092,1805.8,1805.7,0.28174514]
[1746455760474,5.53758822,1805.9,1805.7,0.28174514]
[1746455760686,11.07525956,1805.9,1805.7,0.28174514]
[1746455760849,5.53771181,1805.8,1805.7,0.28174514]
[1746455761565,7.21334181,1805.8,1805.7,0.28174514]
[1746455761873,7.76334181,1805.8,1805.7,0.28174514]
[1746455762188,12.71734181,1805.8,1805.7,0.28174514]
[1746455762388,13.02814698,1805.8,1805.7,0.28174514]
[1746455762692,7.52414698,1805.8,1805.7,0.28174514]
[1746455762994,7.52414698,1805.8,1805.7,6.14]
[1746455763190,7.52414698,1805.8,1805.7,6.39911198]
[1746455763790,6.95604698,1805.8,1805.7,6.39911198]
[1746455763981,5.84851698,1805.8,1805.7,6.39911198]
[1746455764184,5.53771181,1805.8,1805.7,6.39911198]
[1746455765123,6.10581181,1805.8,1805.7,6.39911198]
[1746455765328,6.10581181,1805.8,1805.7,0.25911198]
[1746455765488,7.58150869,1805.8,1805.7,0.25911198]
[1746455766028,5.84906869,1805.8,1805.7,0.25911198]
[1746455766195,5.84906869,1805.8,1805.7,6.39911198]
[1746455766521,5.53771181,1805.8,1805.7,6.39911198]
[1746455768022,5.84906104,1805.8,1805.7,6.39911198]
[1746455768341,0.31134923,1805.8,1805.7,6.39911198]
[1746455768517,5.84906104,1805.8,1805.7,6.39911198]
[1746455769025,5.53771181,1805.8,1805.7,6.64475878]
[1746455771237,5.53771181,1805.8,1805.7,7.42925878]
[1746455773099,5.53771181,1805.8,1805.7,6.64475878]
[1746455773329,6.64524181,1805.8,1805.7,6.64475878]
[1746455774006,7.52492052,1805.8,1805.7,6.64475878]
[1746455774208,8.07492052,1805.8,1805.7,0.50475878]
[1746455774415,13.00592052,1805.8,1805.7,0.50475878]
[1746455774614,13.00592052,1805.8,1805.7,0.2456468]
[1746455774813,16.41853257,1805.8,1805.7,0.2456468]
[1746455777460,16.41048734,1805.8,1805.7,0.2456468]
[1746455778671,3.75,1805.7,1804.9,6.14]
[1746455778825,5.54108716,1804.7,1804.6,6.14]
[1746455779029,5.54139421,1804.6,1804.5,6.14]
[1746455779437,5.54139421,1804.6,1804.5,9.14]
[1746455780027,5.54231557,1804.3,1804.2,4.83001759]
[1746455780320,5.54231557,1804.3,1804.2,10.97001759]
[1746455780736,5.54115879,1804.7,1804.2,13.97001759]
[1746455780966,5.54200842,1804.4,1804.3,6.14]
[1746455781528,5.54146326,1804.6,1804.4,3.8239]
[1746455781728,5.5412975,1804.7,1804.6,3.0]
[1746455781925,5.86211223,1805.2,1804.7,0.7711]
[1746455781926,5.53957016,1805.2,1804.7,0.7711]
[1746455782132,5.54036402,1805.0,1804.8,6.14]
[1746455782366,5.54047315,1804.9,1804.8,6.14]
[1746455783762,5.52578892,1804.9,1804.8,6.14]
[1746455783946,5.53982161,1805.2,1804.8,14.37058055]
[1746455784151,5.53847688,1805.6,1805.2,3.8303]
[1746455784333,5.8595687,1806.0,1805.3,21.81460811]
[1746455784533,5.53837027,1805.6,1805.4,16.22]
[1746455784772,5.53837027,1805.6,1805.5,6.14]
[1746455785346,5.53822034,1805.7,1805.5,6.14]
[1746455785672,5.53819721,1805.7,1805.5,6.14]
[1746455786448,5.53784246,1805.8,1805.6,6.14]
[1746455786664,5.53784246,1805.8,1805.7,6.9243]
[1746455786665,5.53771181,1805.8,1805.7,6.9243]
[1746455786861,5.53756766,1805.9,1805.7,6.9243]
[1746455787377,5.53771181,1805.8,1805.7,6.14]
[1746455788656,5.53756766,1805.9,1805.7,6.14]
[1746455788861,5.53771181,1805.8,1805.7,6.14]
[1746455789263,6.64523976,1805.8,1805.7,6.359612]
[1746455790685,5.53771181,1805.8,1805.7,6.359612]
[1746455791786,5.84786695,1805.8,1805.7,6.359612]
[1746455792480,5.53771181,1805.8,1805.7,6.359612]
[1746455796268,5.53756766,1805.9,1805.7,6.359612]
[1746455796564,5.53756766,1805.9,1805.8,0.7631]
[1746455796763,5.53756766,1805.9,1805.8,7.11867547]
[1746455797352,0.3224,1806.5,1805.9,5.53730277]
[1746455797580,5.53529909,1806.6,1805.9,5.53730277]
[1746455797581,5.53652129,1806.2,1806.0,6.35524525]
[1746455797781,5.53652129,1806.2,1806.0,12.32946047]
[1746455797987,5.53679198,1806.1,1806.0,6.35524525]
[1746455798884,5.53652129,1806.2,1806.0,6.35524525]
[1746455799083,5.53652129,1806.2,1806.0,8.29876978]
[1746455799401,5.53679198,1806.1,1806.0,8.29876978]
[1746455799567,5.53679198,1806.1,1806.0,6.35524525]
[1746455803370,5.53652129,1806.2,1806.0,6.35524525]
[1746455803595,11.07323685,1806.2,1806.0,6.35524525]
[1746455803761,5.53652129,1806.2,1806.0,6.35524525]
[1746455803967,5.53679198,1806.1,1806.0,11.07753978]
[1746455805208,5.53660545,1806.2,1806.0,11.07753978]
[1746455805392,5.53679198,1806.1,1806.0,11.07753978]
[1746455805906,5.53679198,1806.1,1806.0,9.35524525]
[1746455806266,5.53028374,1806.1,1806.0,6.35524525]
[1746455811303,5.85268374,1806.1,1806.0,6.35524525]
[1746455811674,6.16337994,1806.1,1806.0,6.35524525]
[1746455812501,5.84097994,1806.1,1806.0,6.35524525]
[1746455812699,6.97873848,1806.1,1806.0,6.35524525]
[1746455813109,6.97873848,1806.1,1806.0,0.21524525]
[1746455814294,5.84097994,1806.1,1806.0,0.21524525]
[1746455815814,5.53028374,1806.1,1806.0,0.21524525]
[1746455817130,5.53644141,1806.3,1806.1,0.8092]
[1746455817501,5.53644141,1806.3,1806.2,0.21218345]
[1746455817758,5.53648543,1806.2,1806.1,0.8092]
[1746455817922,5.53648543,1806.2,1806.1,3.02446852]
[1746455820481,5.53644141,1806.3,1806.1,3.07983322]
[1746455820639,5.53572244,1806.5,1806.3,0.76]
[1746455820978,5.53542232,1806.6,1806.4,6.35060161]
[1746455821134,5.53542232,1806.6,1806.4,18.80267015]
[1746455821330,5.53542232,1806.6,1806.4,21.80267015]
[1746455821544,5.53542232,1806.6,1806.4,18.80267015]
[1746455821842,5.53542232,1806.6,1806.5,0.8071]
[1746455822168,5.53512653,1806.7,1806.5,1.0175366]
[1746455822477,5.53492198,1806.8,1806.5,1.0175366]
[1746455822860,5.5350422,1806.7,1806.5,1.0175366]
[1746455823378,5.5352596,1806.6,1806.5,1.0175366]
[1746455823550,5.5350422,1806.7,1806.5,1.58492905]
[1746455823749,5.5350422,1806.7,1806.5,1.99367925]
[1746455823948,5.53481337,1806.8,1806.5,4.99367925]
[1746455824286,5.53452522,1806.9,1806.7,3.0]
[1746455824437,5.53389294,1807.1,1806.8,12.87640155]
[1746455824746,5.53389294,1807.1,1807.0,5.97110155]
[1746455824942,5.53359628,1807.2,1807.0,6.1774716]
[1746455825151,5.53359628,1807.2,1807.1,6.9551]
[1746455825356,5.53359628,1807.2,1807.1,17.24130514]
[1746455826343,5.53328497,1807.3,1807.1,20.24130514]
[1746455826548,5.53342186,1807.2,1807.1,20.24130514]
[1746455827165,5.53342186,1807.2,1807.1,19.42620514]
[1746455827370,5.53342186,1807.2,1807.1,16.42620514]
[1746455827911,5.53342186,1807.2,1807.1,19.42620514]
[1746455828117,5.53342186,1807.2,1807.1,22.00670673]
[1746455830718,5.53342186,1807.2,1807.1,19.42620514]
[1746455831078,5.85582186,1807.2,1807.1,0.20620514]
[1746455831281,5.53342186,1807.2,1807.1,0.20620514]
[1746455831479,5.53387747,1807.1,1806.9,15.91250155]
[1746455831717,11.06784635,1807.1,1806.9,15.91250155]
[1746455831923,5.53403431,1807.0,1806.9,1.59125016]
[1746455832074,5.53434058,1806.9,1806.8,10.08]
[1746455834100,5.53434058,1806.9,1806.8,6.14]
[1746455834295,5.53434058,1806.9,1806.8,6.30912065]
[1746455835602,5.5338305,1807.1,1806.9,3.7755]
[1746455835826,5.53359087,1807.2,1807.0,6.68696421]
[1746455836107,5.53359087,1807.2,1807.1,25.19110155]
[1746455836538,5.53359087,1807.2,1807.1,25.36029418]
[1746455836724,5.53359087,1807.2,1807.1,19.38919263]
[1746455838315,5.53325687,1807.3,1807.1,19.38919263]
[1746455838514,11.06607161,1807.4,1807.2,18.94871926]
[1746455838755,5.53297436,1807.4,1807.2,18.94871926]
[1746455838956,5.53297436,1807.4,1807.3,0.16874953]
[1746455842345,5.53230495,1807.6,1807.4,0.7684]
[1746455842655,5.53205111,1807.7,1807.5,3.16632326]
[1746455842816,5.53205111,1807.7,1807.6,0.31663233]
[1746455843158,5.53205111,1807.7,1807.6,0.16615845]
[1746455844861,5.53205111,1807.7,1807.6,0.58101717]
[1746455845162,5.53110992,1808.0,1807.7,3.0]
[1746455845328,5.53127938,1807.9,1807.8,0.8059]
[1746455845532,5.53127938,1807.9,1807.8,0.96306319]
[1746455845729,5.53069762,1808.1,1807.8,12.86202259]
[1746455845730,5.53080751,1808.1,1807.8,12.86202259]
[1746455845944,5.53051439,1808.2,1807.9,3.0553059]
[1746455846333,5.53051439,1808.2,1808.0,6.12793524]
[1746455846543,5.53051439,1808.2,1808.1,3.0]
[1746455846732,5.53021946,1808.3,1808.2,0.8095]
[1746455847161,5.53021946,1808.3,1808.2,0.96328752]
[1746455847368,5.52990841,1808.4,1808.2,1.37510836]
[1746455847527,5.53005585,1808.3,1808.2,1.37510836]
[1746455849555,5.52990841,1808.4,1808.2,1.37510836]
[1746455849729,5.52957971,1808.5,1808.3,3.0]
[1746455850056,5.52975005,1808.4,1808.3,3.0]
[1746455850621,5.5296331,1808.5,1808.3,4.01924224]
[1746455851162,5.5296331,1808.5,1808.4,5.97110155]
[1746455851526,5.52975005,1808.4,1808.3,4.01924224]
[1746455852562,5.52975005,1808.4,1808.3,3.0]
[1746455852725,5.5296331,1808.5,1808.3,3.0]
[1746455852927,5.5296331,1808.5,1808.4,5.97110155]
[1746455853654,5.5296331,1808.5,1808.3,3.0]
[1746455853655,5.52975005,1808.4,1808.3,3.0]
[1746455856540,5.52957298,1808.5,1808.3,3.0]
[1746455856726,5.52957298,1808.5,1808.4,9.27110155]
[1746455857226,5.52862907,1808.8,1808.5,3.7586]